bitfinex/quotes_ETHUSD_20230405
["timestamp","ask_amount","ask_price","bid_price","bid_amount"]
[1680694208460,3.23422334,1916.0,1915.5,0.26132004]
[1680694208768,6.37822334,1916.0,1915.5,0.26132004]
[1680694208960,6.38622334,1916.0,1915.5,0.26132004]
[1680694209863,6.38622334,1916.0,1915.4,11.91281906]
[1680694210165,0.63862233,1915.9,1915.4,11.91281906]
[1680694211063,0.63862233,1915.9,1915.5,1.09]
[1680694211224,5.80779508,1916.0,1915.5,1.09]
[1680694211946,2.66379508,1916.0,1915.5,1.09]
[1680694212273,0.008,1916.1,1915.7,1.088]
[1680694212473,7.21940255,1916.2,1916.1,0.0030971]
[1680694212643,7.22140255,1916.2,1916.1,0.0030971]
[1680694214845,12.71240255,1916.2,1916.1,0.0030971]
[1680694215249,12.94240255,1916.2,1916.1,0.0030971]
[1680694215767,12.96391508,1916.2,1916.1,0.0030971]
[1680694216341,7.47291508,1916.2,1916.1,0.0030971]
[1680694216541,12.96391508,1916.2,1916.1,0.0030971]
[1680694217556,12.95536574,1916.2,1916.1,0.0030971]
[1680694218552,13.95536574,1916.2,1916.1,0.0030971]
[1680694221155,12.95536574,1916.2,1916.1,0.0030971]
[1680694223149,13.50331574,1916.2,1916.1,0.0030971]
[1680694223350,15.59131574,1916.2,1916.1,0.0030971]
[1680694223686,15.22601574,1916.2,1916.1,0.0030971]
[1680694223996,18.22601574,1916.2,1916.1,0.0030971]
[1680694225281,18.04336574,1916.2,1916.1,0.0030971]
[1680694225483,16.95536574,1916.2,1916.1,0.0030971]
[1680694227275,8.635,1916.0,1915.4,0.006]
[1680694227584,3.094,1915.8,1915.4,0.004]
[1680694227773,5.72828255,1915.8,1915.3,3.896]
[1680694227981,5.73028255,1915.8,1915.3,3.896]
[1680694228167,5.73028255,1915.8,1915.3,2.806]
[1680694228547,2.63428255,1915.7,1915.3,2.806]
[1680694229859,5.72828255,1915.7,1915.3,2.806]
[1680694230068,5.73028255,1915.7,1915.3,2.806]
[1680694230274,6.3035108,1915.7,1915.3,2.806]
[1680694230469,6.3095108,1915.7,1915.3,2.79682183]
[1680694230673,12.8825108,1915.7,1915.3,2.79682183]
[1680694231281,0.02151253,1915.6,1915.3,2.79682183]
[1680694231592,5.72828255,1915.5,1915.3,2.79682183]
[1680694231772,5.73628255,1915.5,1915.3,2.79682183]
[1680694232698,11.22728255,1915.5,1915.3,2.79682183]
[1680694233202,11.24879508,1915.5,1915.3,2.79682183]
[1680694233893,0.23,1915.4,1915.0,0.002]
[1680694234061,0.23,1915.4,1914.6,15.26921159]
[1680694234062,5.72828255,1915.3,1914.7,3.0]
[1680694234258,5.73628255,1915.3,1914.7,3.0]
[1680694234592,3.66762826,1915.2,1914.7,3.0]
[1680694234798,6.30191081,1915.2,1914.7,3.0]
[1680694234995,2.63428255,1915.1,1914.7,3.0]
[1680694237071,5.72828255,1915.1,1914.7,3.0]
[1680694237374,5.73628255,1915.1,1914.6,3.42549]
[1680694237558,0.57282826,1915.0,1914.6,0.41749]
[1680694237761,5.72828255,1914.9,1914.6,0.41749]
[1680694237989,11.85139363,1914.9,1914.6,0.41749]
[1680694238793,6.36639363,1914.9,1914.6,0.41749]
[1680694240596,0.008,1914.9,1914.6,0.41749]
[1680694240803,0.02151253,1915.0,1914.6,0.41749]
[1680694241008,5.74979508,1915.0,1914.6,0.41749]
[1680694241187,5.75779508,1915.0,1914.6,0.41749]
[1680694241503,3.094,1914.8,1914.6,0.41749]
[1680694241679,5.72828255,1914.8,1914.6,0.41749]
[1680694241880,5.73028255,1914.8,1914.6,0.41749]
[1680694242091,5.73028255,1914.8,1914.5,2.5]
[1680694243479,6.30391081,1914.8,1914.5,2.5]
[1680694244289,5.73628255,1914.8,1914.5,2.5]
[1680694245373,5.72828255,1914.7,1914.5,2.5]
[1680694245576,5.73628255,1914.7,1914.5,2.5]
[1680694248618,5.73028255,1914.7,1914.5,2.5]
[1680694248862,5.73628255,1914.7,1914.5,2.5]
[1680694250400,6.33142334,1914.7,1914.5,2.5]
[1680694250601,6.32542334,1914.7,1914.5,2.5]
[1680694250798,6.33142334,1914.7,1914.5,2.5]
[1680694254343,11.82242334,1914.7,1914.3,0.002]
[1680694254487,3.09066482,1914.5,1914.1,0.1]
[1680694254696,5.72494737,1914.4,1914.1,0.1]
[1680694254888,6.29944211,1914.4,1914.1,0.1]
[1680694258022,11.79044211,1914.4,1914.1,0.1]
[1680694258787,11.81195464,1914.4,1914.1,0.1]
[1680694259219,6.29944211,1914.4,1914.1,0.1]
[1680694259417,5.72694737,1914.4,1914.1,0.1]
[1680694260249,5.90977737,1914.4,1914.1,0.1]
[1680694260406,11.40077737,1914.4,1914.1,0.1]
[1680694260590,4.09066482,1914.3,1914.1,0.1]
[1680694260792,2.63428255,1914.2,1914.1,0.1]
[1680694260993,3.30677729,1914.2,1914.1,0.1]
[1680694261655,3.30677729,1914.2,1914.1,0.09797483]
[1680694261804,6.39744211,1914.2,1914.1,0.09797483]
[1680694262007,6.58228211,1914.2,1914.1,0.09797483]
[1680694262190,6.95396211,1914.2,1914.1,0.09797483]
[1680694262548,6.97547464,1914.2,1914.1,0.09797483]
[1680694262689,6.96947464,1914.2,1914.1,0.09797483]
[1680694262896,6.97547464,1914.2,1914.1,0.09797483]
[1680694263393,12.46647464,1914.2,1914.1,0.09797483]
[1680694264900,11.89644211,1914.2,1914.1,0.09797483]
[1680694265099,6.40544211,1914.2,1914.1,0.09797483]
[1680694266249,6.39944211,1914.2,1914.1,0.09797483]
[1680694277159,5.72694737,1914.2,1914.1,0.09797483]
[1680694277993,0.002,1914.2,1914.1,0.09797483]
[1680694278205,3.09066482,1914.4,1914.1,0.09797483]
[1680694278371,5.72494737,1914.3,1914.1,0.09797483]
[1680694278571,5.72694737,1914.3,1914.1,0.09797483]
[1680694283011,2.63628255,1914.3,1914.1,0.09797483]
[1680694283189,2.63428255,1914.3,1914.1,0.09797483]
[1680694283387,0.02951253,1914.5,1914.1,0.09797483]
[1680694283588,2.65579508,1914.5,1914.1,0.09797483]
[1680694284100,5.79979508,1914.5,1914.1,0.09797483]
[1680694284303,5.80779508,1914.5,1914.1,0.09797483]
[1680694284508,5.79873135,1914.5,1914.1,0.09797483]
[1680694285282,7.03111872,1914.5,1914.1,0.09797483]
[1680694293096,2.63428255,1914.4,1914.1,0.09797483]
[1680694293407,2.81711255,1914.4,1914.1,0.09797483]
[1680694293814,2.63428255,1914.4,1914.1,0.09797483]
[1680694296171,5.77828255,1914.4,1914.1,0.09797483]
[1680694296375,7.13249442,1914.4,1914.1,0.09797483]
[1680694297706,7.13249442,1914.4,1914.1,0.10397483]
[1680694297903,5.78028255,1914.4,1914.1,0.10397483]
[1680694298399,5.78028255,1914.4,1914.1,2.54999642]
[1680694298599,5.78028255,1914.4,1914.1,1.45999642]
[1680694303322,2.63628255,1914.4,1914.1,1.45999642]
[1680694303616,0.0184488,1914.5,1914.1,1.45999642]
[1680694303617,3.1644488,1914.5,1914.1,1.45999642]
[1680694303823,5.79673135,1914.5,1914.1,1.45999642]
[1680694304015,2.63428255,1914.4,1914.1,1.45999642]
[1680694305082,5.77828255,1914.4,1914.1,1.45999642]
[1680694305308,1.0,1914.3,1914.1,1.45999642]
[1680694305544,3.63428255,1914.3,1914.1,1.45999642]
[1680694306424,3.63210418,1914.3,1914.1,1.45399642]
[1680694306735,4.31013244,1914.3,1914.1,1.45399642]
[1680694307321,5.77828255,1914.2,1914.1,0.09797483]
[1680694307537,5.78028255,1914.2,1914.1,0.09797483]
[1680694307738,7.07499579,1914.2,1914.1,0.09797483]
[1680694308341,12.74883579,1914.2,1914.1,0.09797483]
[1680694308730,12.97883579,1914.2,1914.1,0.09797483]
[1680694310228,13.34451579,1914.2,1914.1,0.09797483]
[1680694310754,12.97883579,1914.2,1914.1,0.09797483]
[1680694311257,12.99728458,1914.2,1914.1,0.09797483]
[1680694314341,13.36296458,1914.2,1914.1,0.09797483]
[1680694315052,17.44696458,1914.2,1914.1,0.09797483]
[1680694315253,18.44696458,1914.2,1914.1,0.09797483]
[1680694317148,18.45296458,1914.2,1914.1,0.09797483]
[1680694322356,17.45296458,1914.2,1914.1,0.09797483]
[1680694322556,16.36896458,1914.2,1914.1,0.09797483]
[1680694324555,18.45096458,1914.2,1914.1,0.09797483]
[1680694325352,16.36896458,1914.2,1914.1,0.09797483]
[1680694326261,16.00328458,1914.2,1914.1,0.09797483]
[1680694326450,16.36896458,1914.2,1914.1,0.09797483]
[1680694326653,17.45296458,1914.2,1914.1,0.09797483]
[1680694326973,18.45296458,1914.2,1914.1,0.09797483]
[1680694331026,17.90444458,1914.2,1914.1,0.09797483]
[1680694331223,18.45296458,1914.2,1914.1,0.09797483]
[1680694331442,18.44696458,1914.2,1914.1,0.09797483]
[1680694334571,17.89844458,1914.2,1914.1,0.09797483]
[1680694334739,18.44696458,1914.2,1914.1,0.09797483]
[1680694335768,17.36896458,1914.2,1914.1,0.09797483]
[1680694337947,17.36296458,1914.2,1914.1,0.09797483]
[1680694342483,16.36296458,1914.2,1914.1,0.09797483]
[1680694342636,16.36896458,1914.2,1914.1,0.09797483]
[1680694344457,16.36296458,1914.2,1914.1,0.09430303]
[1680694348276,15.99728458,1914.2,1914.1,0.09430303]
[1680694350589,5.78028255,1914.2,1914.1,0.09430303]
[1680694350893,5.78028255,1914.2,1914.1,1.17430303]
[1680694351294,5.78028255,1914.2,1914.1,0.09430303]
[1680694352564,11.27128255,1914.2,1914.1,0.09430303]
[1680694352901,11.50128255,1914.2,1914.1,0.09430303]
[1680694353088,12.65141081,1914.2,1914.1,0.09430303]
[1680694355680,5.78028255,1914.2,1914.1,0.09430303]
[1680694361100,5.78028255,1914.2,1914.1,1.18530303]
[1680694366389,0.002,1914.2,1914.1,1.18530303]
[1680694366590,3.144,1914.4,1914.1,1.18530303]
[1680694366791,2.63428255,1914.3,1914.1,1.18530303]
[1680694366993,2.63078772,1914.3,1914.1,1.18730303]
[1680694367315,2.63078772,1914.3,1914.1,1.18530303]
[1680694369603,5.77478772,1914.3,1914.1,1.18530303]
[1680694369806,5.77678772,1914.3,1914.1,1.18530303]
[1680694370515,5.77678772,1914.3,1914.1,0.09430303]
[1680694371117,5.77678772,1914.3,1914.1,0.09430303]
[1680694371618,5.05750529,1915.1,1914.6,2.2]
[1680694371792,0.002,1915.1,1914.9,1.35602159]
[1680694372121,0.16426042,1915.5,1915.0,4.43428255]
[1680694372334,5.218,1916.1,1915.1,1.47368676]
[1680694372482,5.216,1916.1,1916.0,1.091]
[1680694372683,5.216,1916.1,1916.0,1.083]
[1680694372882,5.7488,1916.1,1915.9,1.091]
[1680694373131,5.7488,1916.1,1916.0,1.084]
[1680694373132,5.216,1916.1,1916.0,1.084]
[1680694373296,5.216,1916.1,1916.0,2.313]
[1680694373493,5.7488,1916.1,1916.0,2.319]
[1680694374455,5.7488,1916.1,1916.0,2.313]
[1680694374724,5.216,1916.1,1916.0,3.396]
[1680694375014,5.216,1916.1,1916.0,3.402]
[1680694375217,8.36,1916.1,1916.0,3.402]
[1680694375517,8.36,1916.1,1916.0,1.235]
[1680694375722,8.36,1916.1,1916.0,1.229]
[1680694375723,9.2072,1916.1,1916.0,1.229]
[1680694378922,14.9342,1916.1,1916.0,0.19203125]
[1680694379089,20.56248255,1916.1,1916.0,0.19203125]
[1680694380879,20.74514255,1916.1,1916.0,0.19203125]
[1680694381083,20.56248255,1916.1,1916.0,0.19203125]
[1680694381626,20.74514255,1916.1,1916.0,0.19203125]
[1680694381983,20.56248255,1916.1,1916.0,0.19203125]
[1680694382382,15.07148255,1916.1,1916.0,0.19203125]
[1680694382596,14.84148255,1916.1,1916.0,0.19203125]
[1680694384028,14.84748255,1916.1,1916.0,0.19203125]
[1680694384406,14.84148255,1916.1,1916.0,0.19203125]
[1680694384790,20.74514255,1916.1,1916.0,0.19203125]
[1680694387296,20.56248255,1916.1,1916.0,0.19203125]
[1680694387497,20.74514255,1916.1,1916.0,0.19203125]
[1680694387697,20.56248255,1916.1,1916.0,0.19203125]
[1680694388127,20.56248255,1916.1,1915.3,1.097]
[1680694388303,3.144,1915.9,1915.3,1.091]
[1680694388506,4.6905308,1916.0,1915.3,1.097]
[1680694388507,5.77828255,1915.8,1915.3,1.097]
[1680694392801,5.77828255,1915.8,1915.3,0.006]
[1680694393136,3.144,1915.6,1915.5,0.401]
[1680694393306,5.77828255,1915.6,1915.5,0.401]
[1680694397024,5.77828255,1915.6,1915.5,0.39775729]
[1680694409015,5.77828255,1915.6,1915.5,0.00075729]
[1680694409219,18.98339363,1915.6,1915.5,0.00075729]
[1680694409437,19.16610363,1915.6,1915.5,0.00075729]
[1680694410526,19.53152363,1915.6,1915.5,0.00075729]
[1680694411651,19.16610363,1915.6,1915.5,0.00075729]
[1680694412526,19.53152363,1915.6,1915.5,0.00075729]
[1680694414355,13.26239363,1915.6,1915.5,0.00075729]
[1680694414559,12.07688255,1915.6,1915.5,0.00075729]
[1680694415060,12.25959255,1915.6,1915.5,0.00075729]
[1680694417165,12.62501255,1915.6,1915.5,0.00075729]
[1680694417869,18.34601255,1915.6,1915.5,0.00075729]
[1680694418070,23.23919663,1915.6,1915.5,0.00075729]
[1680694418271,24.33019663,1915.6,1915.5,0.00075729]
[1680694419572,23.23919663,1915.6,1915.5,0.00075729]
[1680694420567,0.18274,1915.3,1914.8,1.091]
[1680694420773,5.77828255,1915.2,1914.8,1.091]
[1680694423380,5.77828255,1915.2,1915.0,0.155]
[1680694425189,0.002,1915.3,1915.0,0.155]
[1680694425393,13.96382,1915.5,1915.0,0.155]
[1680694425700,5.76728255,1915.4,1915.0,0.155]
[1680694425985,5.95001255,1915.4,1915.0,0.155]
[1680694426875,3.133,1915.2,1915.0,0.155]
[1680694427079,5.76728255,1915.2,1915.0,0.155]
[1680694427989,2.63428255,1915.1,1915.0,0.155]
[1680694431499,5.76728255,1915.1,1915.0,0.155]
[1680694437197,6.34421081,1915.1,1915.0,0.155]
[1680694438302,17.96711081,1915.1,1915.0,0.155]
[1680694447316,17.39018255,1915.1,1915.0,0.155]
[1680694449223,5.76728255,1915.1,1915.0,0.155]
[1680694467527,3.133,1915.1,1915.0,0.155]
[1680694471135,0.002,1915.2,1915.0,0.155]
[1680694471300,0.008,1915.4,1915.1,0.922]
[1680694471505,2.63428255,1915.4,1915.1,0.922]
[1680694472014,2.63428255,1915.4,1915.0,0.922]
[1680694475406,6.0258,1915.5,1914.9,3.20262569]
[1680694475605,6.0238,1915.5,1915.3,0.922]
[1680694476052,0.008,1915.6,1915.3,0.922]
[1680694476353,9.1755,1915.7,1915.3,0.922]
[1680694476559,15.17077488,1915.7,1915.3,0.922]
[1680694477038,15.17077488,1915.7,1915.2,0.922]
[1680694477225,15.17077488,1915.7,1915.2,1.09]
[1680694477405,15.35347488,1915.7,1915.2,1.09]
[1680694477812,15.17077488,1915.7,1915.2,1.09]
[1680694478208,15.35347488,1915.7,1915.2,1.09]
[1680694478435,15.17077488,1915.7,1915.2,1.09]
[1680694478636,15.35347488,1915.7,1915.2,1.09]
[1680694479542,0.18271,1915.6,1915.2,1.09]
[1680694479717,1.18271,1915.6,1915.2,1.09]
[1680694480114,2.63554849,1915.6,1915.2,1.09]
[1680694480464,1.18273,1915.4,1915.0,1.083]
[1680694480632,3.81701255,1915.4,1915.0,1.083]
[1680694481934,2.81702255,1915.3,1914.9,1.087]
[1680694482138,3.1987238,1915.3,1914.9,0.006]
[1680694482468,3.0159838,1915.3,1914.9,0.006]
[1680694484723,0.30159838,1915.2,1914.9,0.006]
[1680694484926,3.11862093,1915.2,1914.8,0.006]
[1680694485158,3.11862093,1915.2,1914.7,0.006]
[1680694485372,6.26190464,1915.1,1914.7,0.006]
[1680694485527,12.72835148,1915.1,1914.6,1.36162569]
[1680694485728,1.0,1915.0,1914.6,2.45162569]
[1680694485941,3.63428255,1915.0,1914.6,2.44562569]
[1680694487826,3.63428255,1915.0,1914.6,2.45162569]
[1680694488235,2.63428255,1915.0,1914.6,2.67380571]
[1680694488440,2.63428255,1915.0,1914.7,1.086]
[1680694489579,9.60144684,1915.1,1914.7,1.086]
[1680694489873,12.23372939,1915.1,1914.7,1.265]
[1680694491268,0.008,1915.2,1914.7,1.265]
[1680694491472,6.58104,1915.3,1914.7,1.265]
[1680694491773,0.18275,1915.2,1914.7,1.265]
[1680694492358,1.18275,1915.2,1914.7,1.265]
[1680694494589,0.18275,1915.1,1914.7,1.265]
[1680694495155,1.18275,1915.2,1914.7,1.265]
[1680694496698,1.18274,1915.2,1914.7,1.265]
[1680694497088,0.002,1915.3,1914.8,0.22218002]
[1680694497286,0.18274,1915.3,1914.7,2.62062569]
[1680694497495,0.18274,1915.3,1914.9,1.081]
[1680694499859,2.63428255,1915.2,1914.7,1.081]
[1680694500068,2.63428255,1915.2,1915.0,0.178]
[1680694500267,2.81703255,1915.2,1915.0,0.178]
[1680694500470,3.81703255,1915.2,1915.0,0.178]
[1680694500794,4.74458881,1915.2,1915.0,0.178]
[1680694500954,3.74458881,1915.2,1915.0,0.078]
[1680694502696,3.56183881,1915.2,1915.0,0.078]
[1680694503002,0.92755626,1915.2,1915.0,0.078]
[1680694509081,3.74457881,1915.2,1915.0,0.078]
[1680694509282,0.37445788,1915.1,1915.0,0.078]
[1680694511734,3.00874043,1915.1,1915.0,0.078]
[1680694511965,6.69000043,1915.1,1915.0,0.078]
[1680694512252,13.24780043,1915.1,1915.0,0.078]
[1680694512605,12.88229043,1915.1,1915.0,0.078]
[1680694513060,12.69954043,1915.1,1915.0,0.078]
[1680694513910,12.88229043,1915.1,1915.0,0.078]
[1680694515055,12.69954043,1915.1,1915.0,0.078]
[1680694516864,6.93225788,1915.1,1915.0,0.078]
[1680694517031,6.5578,1915.1,1915.0,0.078]
[1680694519569,6.5578,1915.1,1915.0,0.07469854]
[1680694520045,0.93555626,1915.2,1915.0,0.07469854]
[1680694520254,8.01956,1915.3,1915.0,0.07469854]
[1680694520547,10.65384255,1915.3,1915.0,0.07469854]
[1680694522924,8.01956,1915.3,1915.0,0.07469854]
[1680694526934,8.2023,1915.3,1915.0,0.07469854]
[1680694527170,0.82023,1915.2,1915.0,0.07469854]
[1680694528056,1.00298,1915.2,1915.0,0.07469854]
[1680694529630,3.63726255,1915.2,1915.0,0.07469854]
[1680694529836,7.13575255,1915.2,1915.0,0.07469854]
[1680694535082,6.77026255,1915.2,1915.0,0.07469854]
[1680694535375,0.67702626,1915.1,1915.0,0.07469854]
[1680694535555,0.85977626,1915.1,1915.0,0.07469854]
[1680694538081,6.99256881,1915.1,1915.0,0.07469854]
[1680694538288,6.99256881,1915.1,1914.5,1.36162569]
[1680694538473,5.76728255,1915.0,1914.5,1.36162569]
[1680694538646,0.57672826,1914.9,1914.5,1.36162569]
[1680694538847,3.21101081,1914.9,1914.7,0.093]
[1680694540999,2.63428255,1914.8,1914.7,0.093]
[1680694541406,12.72863255,1914.8,1914.7,0.093]
[1680694541601,12.72863255,1914.8,1914.2,0.006]
[1680694541602,12.95863255,1914.8,1914.2,0.006]
[1680694541891,3.31581,1914.6,1914.2,0.006]
[1680694542094,5.94674978,1914.6,1914.1,1.45592872]
[1680694542246,0.331581,1914.5,1914.1,1.45592872]
[1680694542652,1.331581,1914.5,1914.1,1.44992872]
[1680694543369,1.331581,1914.5,1914.1,0.09430303]
[1680694543598,0.1331581,1914.4,1914.1,0.09430303]
[1680694543784,1.331581,1914.5,1914.1,0.09430303]
[1680694545158,3.96586355,1914.5,1914.1,0.09430303]
[1680694545359,3.96586355,1914.5,1914.2,0.087]
[1680694547403,4.14867355,1914.5,1914.2,0.087]
[1680694547579,3.96586355,1914.5,1914.2,0.087]
[1680694550280,0.39658636,1914.4,1914.2,0.087]
[1680694550486,6.16052614,1914.4,1914.1,0.09430303]
[1680694553383,7.26534614,1914.4,1914.1,0.09430303]
[1680694553587,1.0,1914.2,1914.1,0.09430303]
[1680694553800,4.13944827,1914.2,1914.1,0.09430303]
[1680694554225,12.7601055,1914.2,1914.1,0.09430303]
[1680694554590,12.9429455,1914.2,1914.1,0.09430303]
[1680694554822,12.7601055,1914.2,1914.1,0.09430303]
[1680694555021,23.9134055,1914.2,1914.1,0.09430303]
[1680694555387,24.0962455,1914.2,1914.1,0.09430303]
[1680694555716,23.9134055,1914.2,1914.1,0.09430303]
[1680694556119,24.8284055,1914.2,1914.1,0.09430303]
[1680694556291,25.0112455,1914.2,1914.1,0.09430303]
[1680694557081,24.8284055,1914.2,1914.1,0.09430303]
[1680694557323,23.9134055,1914.2,1914.1,0.09430303]
[1680694558018,24.0962455,1914.2,1914.1,0.09430303]
[1680694558398,3.12965723,1914.0,1913.4,4.31566305]
[1680694558610,2.63428255,1913.9,1913.4,4.31366305]
[1680694558805,2.63428255,1913.9,1913.4,4.31966305]
[1680694559328,2.63428255,1913.9,1913.4,2.96403736]
[1680694559520,2.63428255,1913.9,1913.4,4.31366305]
[1680694559685,2.63428255,1913.9,1913.4,2.96403736]
[1680694559889,2.63428255,1913.9,1913.4,2.95803736]
[1680694560119,3.21147653,1913.9,1913.4,2.95803736]
[1680694560921,3.21147653,1913.9,1913.4,4.31366305]
[1680694561127,3.21147653,1913.9,1913.4,2.96403736]
[1680694561323,3.21147653,1913.9,1913.4,2.95803736]
[1680694561495,3.21147653,1913.9,1913.4,4.31366305]
[1680694561693,0.32114765,1913.8,1913.4,2.96403736]
[1680694562005,0.32114765,1913.8,1913.3,3.89965266]
[1680694562208,6.08508743,1913.8,1913.3,1.48315266]
[1680694562408,0.60850874,1913.7,1913.3,4.48315266]
[1680694562624,0.60850874,1913.7,1913.5,0.044]
[1680694563323,3.24279129,1913.7,1913.5,0.044]
[1680694563526,6.55533852,1913.7,1913.5,0.044]
[1680694563728,0.65553385,1913.6,1913.5,0.044]
[1680694567500,6.41947363,1913.6,1913.5,0.044]
[1680694568027,0.61650874,1913.7,1913.5,0.044]
[1680694568244,2.63428255,1913.7,1913.5,0.044]
[1680694572123,2.81717255,1913.7,1913.5,0.044]
[1680694572919,2.63428255,1913.7,1913.5,0.044]
[1680694576239,2.81717255,1913.7,1913.5,0.044]
[1680694576474,2.81717255,1913.7,1913.3,0.12152697]
[1680694576654,0.28171726,1913.6,1913.3,0.12152697]
[1680694577386,0.28171726,1913.6,1913.3,0.1]
[1680694577886,2.63428255,1913.5,1913.3,0.1]
[1680694578055,2.63428255,1913.5,1913.3,0.0971215]
[1680694579185,8.92548255,1913.5,1913.3,0.0971215]
[1680694579354,10.16030253,1913.5,1913.3,0.0971215]
[1680694582889,10.16630253,1913.5,1913.3,0.0971215]
[1680694588807,7.53201998,1913.5,1913.3,0.0971215]
[1680694588961,6.2972,1913.5,1913.3,0.0971215]
[1680694589155,6.2972,1913.5,1913.4,0.052]
[1680694589905,0.006,1913.5,1913.4,0.052]
[1680694590111,0.002,1913.5,1913.4,0.052]
[1680694590405,6.188,1913.7,1913.4,0.052]
[1680694595988,0.006,1913.7,1913.4,0.052]
[1680694596185,6.0504,1913.8,1913.4,0.052]
[1680694596393,6.0564,1913.8,1913.4,0.052]
[1680694597191,6.0564,1913.8,1913.4,1.40762569]
[1680694598210,8.04507,1913.8,1913.4,1.40762569]
[1680694599312,0.006,1913.8,1913.5,2.44062569]
[1680694599505,20.5773,1914.1,1913.6,1.35562569]
[1680694599681,25.45216255,1914.1,1913.5,2.44062569]
[1680694599882,25.26931255,1914.1,1913.5,2.44062569]
[1680694600116,25.45216255,1914.1,1913.6,1.35562569]
[1680694600278,25.26931255,1914.1,1913.6,1.35562569]
[1680694600480,2.52693126,1914.0,1913.6,1.35562569]
[1680694600711,2.53293126,1914.0,1913.5,2.4621504]
[1680694601184,2.53293126,1914.0,1913.6,1.35562569]
[1680694602425,2.52443199,1914.0,1913.6,1.35562569]
[1680694603036,23.20758255,1914.1,1913.6,1.35562569]
[1680694603209,23.20558255,1914.1,1913.6,1.35562569]
[1680694604016,23.20558255,1914.1,1913.6,1.36162569]
[1680694605221,23.20558255,1914.1,1913.7,1.35562569]
[1680694607007,23.20558255,1914.1,1913.6,1.36162569]
[1680694608289,25.54522481,1914.1,1913.6,1.36162569]
[1680694608629,25.54522481,1914.1,1913.7,1.35562569]
[1680694608993,25.54522481,1914.1,1913.6,1.36162569]
[1680694609405,19.77794226,1914.1,1913.7,1.35562569]
[1680694609611,19.77794226,1914.1,1913.7,1.40962569]
[1680694610942,19.77794226,1914.1,1913.7,0.054]
[1680694612200,0.002,1914.2,1913.7,1.146]
[1680694612524,6.2807,1914.3,1913.8,2.44762569]
[1680694612719,8.564732,1914.3,1913.7,2.50062569]
[1680694612916,8.564732,1914.3,1913.7,2.49462569]
[1680694613107,1.18284,1914.2,1913.7,2.49462569]
[1680694613309,6.76728255,1914.2,1913.7,1.40962569]
[1680694613495,0.118284,1914.1,1913.7,1.40962569]
[1680694614525,2.75256655,1914.1,1913.7,1.40962569]
[1680694614725,5.88556655,1914.1,1913.7,0.054]
[1680694616444,2.63428255,1913.9,1913.7,0.054]
[1680694616648,1.0,1913.8,1913.7,0.054]
[1680694616999,1.0,1913.8,1913.5,1.3831504]
[1680694617242,1.0,1913.8,1913.7,0.052]
[1680694617243,1.98381826,1913.8,1913.7,0.052]
[1680694622612,11.97318255,1913.9,1913.7,0.052]
[1680694622814,11.97118255,1913.9,1913.7,0.052]
[1680694636882,6.2039,1913.9,1913.7,0.052]
[1680694637129,0.002,1914.0,1913.7,0.052]
[1680694637282,3.133,1914.2,1913.7,0.975]
[1680694637480,3.133,1914.2,1913.7,2.33062569]
[1680694637481,5.76728255,1914.2,1913.7,2.33062569]
[1680694637832,5.76728255,1914.2,1913.7,2.35214816]
[1680694638287,0.008,1914.3,1913.9,0.923]
[1680694638493,11.3192,1914.4,1913.9,0.923]
[1680694644930,0.002,1914.5,1914.2,0.923]
[1680694645127,17.8065,1914.6,1914.2,0.923]
[1680694645336,20.44078255,1914.6,1914.2,0.923]
[1680694646323,0.008,1914.7,1914.2,0.923]
[1680694646523,6.2794,1914.7,1914.2,0.923]
[1680694647621,6.46219,1914.7,1914.2,0.923]
[1680694648147,6.2794,1914.7,1914.2,0.923]
[1680694650535,6.46219,1914.7,1914.2,0.923]
[1680694651226,6.2794,1914.7,1914.2,0.923]
[1680694651427,10.69636255,1914.7,1914.2,0.923]
[1680694651753,10.69636255,1914.7,1914.1,0.94451796]
[1680694655080,11.5474,1914.8,1914.3,0.923]
[1680694655278,0.008,1914.9,1914.7,0.923]
[1680694655478,0.008,1914.9,1914.4,8.12528255]
[1680694655479,5.222,1915.0,1914.8,0.923]
[1680694655684,5.218,1915.0,1914.8,0.923]
[1680694655989,5.222,1915.0,1914.8,0.923]
[1680694656685,5.216,1915.0,1914.8,0.923]
[1680694657392,5.216,1915.0,1914.8,1.09]
[1680694660461,5.216,1915.0,1914.9,1.089]
[1680694661285,5.21211651,1915.0,1914.9,1.093]
[1680694661593,5.21211651,1915.0,1914.9,1.089]
[1680694664724,5.21211651,1915.0,1914.8,1.11151011]
[1680694667598,5.21211651,1915.0,1914.9,1.084]
[1680694670968,5.21211651,1915.0,1914.9,1.09]
[1680694672172,5.21211651,1915.0,1914.9,1.08035727]
[1680694674563,5.21211651,1915.0,1914.9,1.33935727]
[1680694679839,5.21211651,1915.0,1914.9,3.97363982]
[1680694680040,5.21811651,1915.0,1914.9,6.97363982]
[1680694680255,5.21811651,1915.0,1914.9,6.97563982]
[1680694681969,5.21811651,1915.0,1914.9,12.46663982]
[1680694682168,5.21811651,1915.0,1914.9,14.07782194]
[1680694682387,5.21811651,1915.0,1914.9,14.33914198]
[1680694682693,5.21811651,1915.0,1914.9,13.25514198]
[1680694682694,5.21211651,1915.0,1914.9,13.25514198]
[1680694682998,5.21211651,1915.0,1914.9,12.99382194]
[1680694693470,5.21211651,1915.0,1914.9,14.68445637]
[1680694694925,0.11000001,1915.7,1915.2,5.491]
[1680694695123,0.11000001,1915.7,1915.6,7.671]
[1680694695270,0.11000001,1915.7,1915.6,10.53728255]
[1680694695271,0.11600001,1915.7,1915.6,10.53728255]
[1680694695471,0.11000001,1916.0,1915.6,15.44228255]
[1680694695706,0.11000001,1916.0,1915.7,13.53528255]
[1680694695892,0.11000001,1916.0,1915.7,13.53728255]
[1680694696081,0.11000001,1916.0,1915.7,12.44728255]
[1680694696407,0.11000001,1916.0,1915.7,12.47428255]
[1680694698788,0.11000001,1916.0,1915.7,13.00337167]
[1680694701016,0.11000001,1916.0,1915.7,14.08337167]
[1680694701224,0.11000001,1916.0,1915.7,14.81125055]
[1680694701379,0.11000001,1916.0,1915.7,15.41188498]
[1680694701578,0.08720002,1915.9,1915.8,11.824]